fUSD/lending_fUSD_20260630
["ID","MTS","AMOUNT","RATE_DAILY","PERIOD"]
[426698411,1782749457000,-1312.04292536,0.00037,7]
[426698403,1782749457000,-181.6555646,0.00037,120]
[426698415,1782749457000,-4393.0,0.0003705,120]
[426698413,1782749457000,-431.5566,0.00037034,30]
[426698410,1782749457000,-9000.0,0.00037,5]
[426698426,1782749457000,-151.0,0.00035531,7]
[426698418,1782749457000,-520.0,0.00037075,7]
[426698420,1782749457000,-1359.44,0.000371,120]
[426698421,1782749457000,-109460.41048158,0.000371,2]
[426698422,1782749457000,-1202.2861237,0.000371,2]
[426698423,1782749457000,-151.0,0.00027397,2]
[426698425,1782749457000,-300.0,0.00033765,2]
[426698428,1782749457000,-29841.91339127,0.000371,2]
[426698430,1782749457000,-1784.82105129,0.000371,2]
[426698424,1782749457000,-414.62,0.0002755,30]
[426698402,1782749457000,-100151.30241304,0.00037,10]
[426698419,1782749457000,-262.0,0.00037075,7]
[426698405,1782749457000,-263334.0,0.00037,30]
[426698387,1782749457000,-10351.40320883,0.00037,2]
[426698400,1782749457000,-162.56139634,0.00037,30]
[426698427,1782749457000,-151.0,0.000365,30]
[426698380,1782749457000,-160.0,0.00036966,11]
[426698381,1782749457000,-600.0,0.00036986,120]
[426698382,1782749457000,-600.0,0.00036986,120]
[426698383,1782749457000,-160.0,0.0003699,11]
[426698384,1782749457000,-208.22616717,0.00036991,2]
[426698385,1782749457000,-25389.40113687,0.00037,120]
[426698386,1782749457000,-307.00013613,0.00037,120]
[426698394,1782749457000,-2222.9125001,0.00037,61]
[426698388,1782749457000,-7218.43225,0.00037,14]
[426698393,1782749457000,-1489.06357888,0.00037,30]
[426698390,1782749457000,-148291.20975917,0.00037,30]
[426698391,1782749457000,-365.0,0.00037,2]
[426698389,1782749457000,-25735.82330614,0.00037,7]
[426698392,1782749457000,-27930.0060947,0.00037,120]
[426698396,1782749457000,-158.00094596,0.00037,20]
[426698401,1782749457000,-4500.0,0.00037,2]
[426698406,1782749457000,-800.0,0.00037,45]
[426698408,1782749457000,-800.0,0.00037,45]
[426698395,1782749457000,-4106.0936692,0.00037,2]
[426698407,1782749457000,-800.0,0.00037,45]
[426698398,1782749457000,-3287.92060607,0.00037,30]
[426698397,1782749457000,-5000.0,0.00037,120]
[426698399,1782749457000,-169.32699743,0.00037,2]
[426698429,1782749457000,-14976.96952,0.000371,2]
[426698466,1782749457000,-150.0,0.00037295,30]
[426698433,1782749457000,-300.0,0.00033765,2]
[426698458,1782749457000,-350.0,0.00037257,2]
[426698460,1782749457000,-175.21951814,0.00037274,7]
[426698459,1782749457000,-5814.1151324,0.0003727,2]
[426698463,1782749457000,-90327.2953463,0.00037277,2]
[426698470,1782749457000,-237.7071658,0.000373,120]
[426698467,1782749457000,-156.45,0.00037295,30]
[426698464,1782749457000,-166.0,0.0003728,120]
[426698472,1782749457000,-72961.0,0.000373,7]
[426698469,1782749457000,-1580.07,0.000373,30]
[426698465,1782749457000,-159.06645113,0.00037295,30]
[426698461,1782749457000,-11995.89371474,0.00037275,120]
[426698475,1782749457000,-81952.9878,0.00037315,30]
[426698468,1782749457000,-350.0,0.00037299,44]
[426698473,1782749457000,-150.0,0.00037303,2]
[426698474,1782749457000,-297.42034429,0.00037311,120]
[426698477,1782749457000,-327.80036022,0.0003733,2]
[426698476,1782749457000,-11995.89371474,0.00037316,120]
[426698479,1782749457000,-300.0,0.0003733,30]
[426698480,1782749457000,-307.42,0.0003733,30]
[426698482,1782749457000,-161.14240608,0.00037335,90]
[426698481,1782749457000,-172.32,0.0003733,30]
[426698431,1782749457000,-151.0,0.00027397,2]
[426698471,1782749457000,-200.0,0.000373,10]
[426698457,1782749457000,-453.20347994,0.00037247,2]
[426698478,1782749457000,-311.06760605,0.0003733,2]
[426698455,1782749457000,-11995.89371474,0.00037233,120]
[426698456,1782749457000,-208.22616717,0.00037237,2]
[426698436,1782749457000,-5000.0,0.00037108,2]
[426698434,1782749457000,-21475.94672293,0.000371,2]
[426698432,1782749457000,-414.62,0.00027711,7]
[426698437,1782749457000,-152.314094,0.00037108,30]
[426698438,1782749457000,-11995.89371474,0.00037108,120]
[426698439,1782749457000,-165.967501,0.00037116,120]
[426698441,1782749457000,-173.99,0.00037144,30]
[426698443,1782749457000,-162.92,0.0003715,60]
[426698442,1782749457000,-11995.89371474,0.0003715,120]
[426698446,1782749457000,-11995.89371474,0.00037191,120]
[426698435,1782749457000,-2374.25805988,0.000371,120]
[426698440,1782749457000,-151.09934801,0.0003713,2]
[426698444,1782749457000,-200.0,0.00037178,10]
[426698454,1782749457000,-1084.61,0.00037225,120]
[426698453,1782749457000,-564.6,0.00037225,120]
[426698452,1782749457000,-1445.88,0.00037225,120]
[426698462,1782749457000,-560.6986933,0.00037277,2]
[426698451,1782749457000,-2000.0,0.00037225,120]
[426698450,1782749457000,-350.0,0.00037208,2]
[426698449,1782749457000,-13706.09996776,0.000372,120]
[426698447,1782749457000,-572.34641523,0.000372,30]
[426698445,1782749457000,-228.39852838,0.00037183,16]
[426698448,1782749457000,-895.36435168,0.000372,30]
[426698509,1782749458000,-151.0,0.00037396,7]
[426698510,1782749458000,-168.94523899,0.00037396,7]
[426698512,1782749458000,-298.97416003,0.00037396,7]
[426698514,1782749458000,-202.75,0.000374,15]
[426698517,1782749458000,-300.0,0.000374,10]
[426698522,1782749458000,-2546.857,0.000374,60]
[426698515,1782749458000,-10351.40320883,0.000374,2]
[426698513,1782749458000,-11995.89371474,0.000374,120]
[426698518,1782749458000,-310.0,0.000374,2]
[426698516,1782749458000,-29725.68815782,0.000374,120]
[426698523,1782749458000,-2546.857,0.000374,60]
[426698520,1782749458000,-1000.0,0.000374,2]
[426698521,1782749458000,-317.0,0.000374,2]
[426698524,1782749458000,-2546.85,0.000374,60]
[426698534,1782749458000,-4497.1312288,0.00037448,2]
[426698525,1782749458000,-202.91070771,0.0003741,21]
[426698530,1782749458000,-11995.89371474,0.00037441,120]
[426698533,1782749458000,-289.4677475,0.00037447,2]
[426698526,1782749458000,-1297.3044406,0.00037414,2]
[426698527,1782749458000,-20154.7438764,0.00037417,2]
[426698506,1782749458000,-153.0,0.00037396,7]
[426698531,1782749458000,-151.0,0.00037446,2]
[426698519,1782749458000,-200.0,0.000374,14]
[426698507,1782749458000,-163.43448267,0.00037396,7]
[426698494,1782749458000,-451.0,0.00037353,2]
[426698505,1782749458000,-514.66615445,0.00037382,2]
[426698528,1782749458000,-220.52808754,0.00037428,2]
[426698487,1782749458000,-956.74466435,0.00037345,120]
[426698484,1782749458000,-956.74466435,0.00037345,120]
[426698485,1782749458000,-956.74466435,0.00037345,120]
[426698483,1782749458000,-956.74466435,0.00037345,120]
[426698488,1782749458000,-956.74466435,0.00037345,120]
[426698490,1782749458000,-956.74466435,0.00037345,120]
[426698491,1782749458000,-956.74466435,0.00037345,120]
[426698489,1782749458000,-956.74466435,0.00037345,120]
[426698493,1782749458000,-431.77962971,0.0003735,120]
[426698508,1782749458000,-151.0,0.00037396,7]
[426698499,1782749458000,-514.66615445,0.00037368,2]
[426698496,1782749458000,-10638.52071498,0.0003736,120]
[426698492,1782749458000,-956.74466435,0.00037345,120]
[426698497,1782749458000,-288.60140141,0.00037368,120]
[426698498,1782749458000,-151.28126695,0.00037368,120]
[426698501,1782749458000,-250.0,0.0003737,2]
[426698511,1782749458000,-174.31195855,0.00037396,7]
[426698500,1782749458000,-7509.4849763,0.0003737,2]
[426698503,1782749458000,-250.0,0.0003737,2]
[426698502,1782749458000,-203.52911153,0.0003737,2]
[426698504,1782749458000,-450.0,0.0003737,2]
[426698495,1782749458000,-11995.89371474,0.00037358,120]
[426698529,1782749458000,-333.83,0.00037438,120]
[426698486,1782749458000,-956.74466435,0.00037345,120]
[426698535,1782749458000,-151.09934801,0.0003745,2]
[426698564,1782749458000,-150.0,0.00037483,6]
[426698567,1782749458000,-352.05,0.00037483,30]
[426698566,1782749458000,-500.0389222,0.00037483,120]
[426698565,1782749458000,-292.30332366,0.00037483,120]
[426698563,1782749458000,-2000.0,0.00037482,30]
[426698568,1782749458000,-472.44996895,0.00037483,60]
[426698572,1782749458000,-500.0,0.00037483,30]
[426698569,1782749458000,-388.61,0.00037483,2]
[426698571,1782749458000,-200.0,0.00037483,2]
[426698576,1782749458000,-500.0,0.00037483,30]
[426698561,1782749458000,-211.23,0.00037482,30]
[426698574,1782749458000,-500.0,0.00037483,30]
[426698573,1782749458000,-500.0,0.00037483,30]
[426698570,1782749458000,-11995.89371474,0.00037483,120]
[426698578,1782749458000,-500.0,0.00037483,30]
[426698580,1782749458000,-500.0,0.00037483,30]
[426698579,1782749458000,-214.87596859,0.00037483,30]
[426698581,1782749458000,-570.19560874,0.00037483,30]
[426698583,1782749458000,-618.65120509,0.00037483,2]
[426698582,1782749458000,-200.0,0.00037483,2]
[426698584,1782749458000,-199.553,0.00037483,90]
[426698532,1782749458000,-500.0,0.00037446,2]
[426698577,1782749458000,-500.0,0.00037483,30]
[426698562,1782749458000,-2000.0,0.00037482,2]
[426698575,1782749458000,-500.0,0.00037483,30]
[426698559,1782749458000,-271.78504404,0.00037482,2]
[426698560,1782749458000,-271.78504404,0.00037482,2]
[426698538,1782749458000,-200.0,0.0003747,2]
[426698536,1782749458000,-1250.5027898,0.00037467,2]
[426698537,1782749458000,-250.0,0.0003747,2]
[426698539,1782749458000,-179.7755725,0.00037479,7]
[426698540,1782749458000,-150.0,0.00037479,7]
[426698542,1782749458000,-279.10784637,0.00037479,2]
[426698544,1782749458000,-463.94634502,0.00037479,2]
[426698545,1782749458000,-151.0,0.0003748,14]
[426698543,1782749458000,-318.98039586,0.00037479,2]
[426698546,1782749458000,-151.0,0.0003748,14]
[426698541,1782749458000,-150.0,0.00037479,7]
[426698552,1782749458000,-155.0,0.00037482,120]
[426698557,1782749458000,-166.94991172,0.00037482,90]
[426698551,1782749458000,-20284.51601834,0.00037482,120]
[426698558,1782749458000,-225.0,0.00037482,120]
[426698556,1782749458000,-320.0,0.00037482,120]
[426698547,1782749458000,-30000.0,0.00037481,2]
[426698554,1782749458000,-7098.67862995,0.00037482,120]
[426698553,1782749458000,-159.0,0.00037482,120]
[426698548,1782749458000,-2000.0,0.00037481,120]
[426698549,1782749458000,-2000.0,0.00037481,60]
[426698550,1782749458000,-824.85309891,0.00037481,62]
[426698555,1782749458000,-158.0,0.00037482,120]
[426698605,1782749459000,-2000.0,0.000375,7]
[426698604,1782749459000,-216.58458871,0.000375,3]
[426698600,1782749459000,-631.0,0.000375,120]
[426698614,1782749459000,-611.0,0.00037518,120]
[426698607,1782749459000,-1522.93896515,0.000375,2]
[426698606,1782749459000,-800.0,0.000375,45]
[426698608,1782749459000,-800.0,0.000375,45]
[426698612,1782749459000,-158.0,0.00037518,120]
[426698613,1782749459000,-154.0,0.00037518,120]
[426698611,1782749459000,-441.73,0.00037518,10]
[426698610,1782749459000,-1106.64558841,0.00037516,2]
[426698617,1782749459000,-190.1,0.00037518,120]
[426698603,1782749459000,-4000.0007029,0.000375,50]
[426698627,1782749459000,-588.0,0.00037525,120]
[426698609,1782749459000,-171.21,0.00037509,2]
[426698592,1782749459000,-500.0,0.000375,5]
[426698587,1782749459000,-13458.35961859,0.000375,60]
[426698599,1782749459000,-50000.0,0.000375,30]
[426698624,1782749459000,-500.0,0.00037524,120]
[426698590,1782749459000,-500.0,0.000375,5]
[426698585,1782749459000,-150.0,0.00037487,2]
[426698586,1782749459000,-120000.0,0.0003749,60]
[426698589,1782749459000,-79902.83,0.000375,30]
[426698588,1782749459000,-234.96592901,0.000375,60]
[426698596,1782749459000,-60000.0,0.000375,30]
[426698591,1782749459000,-500.0,0.000375,5]
[426698598,1782749459000,-11693.7406582,0.000375,120]
[426698602,1782749459000,-5020.22616866,0.000375,120]
[426698594,1782749459000,-500.25,0.000375,5]
[426698593,1782749459000,-607.47,0.000375,5]
[426698601,1782749459000,-5000.0,0.000375,5]
[426698597,1782749459000,-6305.58123441,0.000375,80]
[426698595,1782749459000,-9340.6326199,0.000375,30]
[426698620,1782749459000,-152.72375382,0.00037524,120]
[426698615,1782749459000,-153.0,0.00037518,120]
[426698622,1782749459000,-158.31332977,0.00037524,120]
[426698638,1782749459000,-1035.09887345,0.00027397,10]
[426698640,1782749459000,-1356.89519193,0.00027397,10]
[426698641,1782749459000,-230.00882653,0.00028033,30]
[426698644,1782749459000,-151.0,0.0003226,7]
[426698643,1782749459000,-151.0,0.0003226,7]
[426698642,1782749459000,-414.62,0.00028194,7]
[426698639,1782749459000,-337.56593462,0.00027397,10]
[426698647,1782749459000,-151.0,0.00035531,7]
[426698649,1782749459000,-36129.05023412,0.00037525,30]
[426698648,1782749459000,-151.0,0.000365,30]
[426698651,1782749459000,-4281.50448938,0.00037525,30]
[426698650,1782749459000,-19371.52128549,0.00037525,30]
[426698653,1782749459000,-1519.02467073,0.00037525,30]
[426698652,1782749459000,-1424.84513477,0.00037525,30]
[426698645,1782749459000,-300.0,0.00033765,2]
[426698637,1782749459000,-184.61117347,0.00028033,30]
[426698646,1782749459000,-151.0,0.00035531,7]
[426698635,1782749459000,-151.0,0.00027397,2]
[426698636,1782749459000,-414.62,0.00027872,2]
[426698619,1782749459000,-248.22935759,0.00037524,120]
[426698623,1782749459000,-236.30487175,0.00037524,120]
[426698621,1782749459000,-150.31899883,0.00037524,120]
[426698616,1782749459000,-157.0,0.00037518,120]
[426698618,1782749459000,-7204.79998156,0.0003752,35]
[426698625,1782749459000,-500.0,0.00037524,120]
[426698628,1782749459000,-160.0,0.00037525,120]
[426698626,1782749459000,-499.685,0.00037524,120]
[426698630,1782749459000,-155.0,0.00037525,120]
[426698629,1782749459000,-154.0,0.00037525,120]
[426698631,1782749459000,-250.0,0.00037525,7]
[426698632,1782749459000,-5959697.56375163,0.00037525,30]
[426698654,1782749459000,-300.0,0.00033765,2]
[426698633,1782749459000,-281206.77077471,0.00037525,30]
[426698634,1782749459000,-151.0,0.00027397,2]
[426698655,1782749460000,-112.08957102,0.00033765,2]
[426698656,1782749460000,-263.16243939,0.00033765,2]
[426698663,1782749460000,-151.0,0.00029479,2]
[426698657,1782749460000,-251.970342,0.000365,30]
[426698658,1782749460000,-159685.82783597,0.00037525,30]
[426698664,1782749460000,-1163.12,0.00037525,30]
[426698662,1782749460000,-3518.73913784,0.00037525,30]
[426698659,1782749460000,-2993.25,0.00037525,30]
[426698660,1782749460000,-151.0,0.000289,2]
[426698661,1782749460000,-10182.28917009,0.00037525,30]
[426698666,1782749460000,-1772.2922684,0.00037525,30]
[426698665,1782749460000,-2064.3527658,0.00037525,30]
[426698667,1782749460000,-4419.01612462,0.00037525,30]
[426698669,1782749522000,-197.81007578,0.00013698,2]
[426698668,1782749522000,-150.0,0.00013697,2]
[426698670,1782749722000,-234.06167811,0.00013292,2]
[426698671,1782749722000,-265.93832189,0.00013292,2]
[426698672,1782749722000,-500.0,0.00013292,2]
[426698673,1782749722000,-500.0,0.00013292,2]
[426698675,1782749722000,-234.06167811,0.00013598,2]
[426698674,1782749722000,-300.00000002,0.00013292,2]
[426698680,1782749722000,-16.64839763,0.00013698,2]
[426698679,1782749722000,-1071.19,0.00013698,2]
[426698676,1782749722000,-150.0,0.00013697,2]
[426698677,1782749722000,-873.37992422,0.00013698,2]
[426698678,1782749722000,-1071.19,0.00013698,2]
[426698681,1782749751000,150.0,0.00012573,2]
[426698684,1782749765000,316.93209991,0.00014355,7]
[426698683,1782749765000,211.2880666,0.00013558,7]
[426698682,1782749765000,-1054.54160237,0.00013698,2]
[426698685,1782749818000,-250.0,0.00013628,2]
[426698687,1782749872000,200.0,0.0001454,7]
[426698686,1782749872000,-168.29531248,0.00013598,2]
[426698689,1782749889000,-11.0,0.00013696,2]
[426698688,1782749889000,-250.0,0.00013696,2]
[426698690,1782749925000,-272.58947469,0.00013696,2]
[426698691,1782749979000,-152.0,0.00013696,2]
[426698693,1782750032000,-500.0,0.0001357,2]
[426698694,1782750085000,-500.0,0.00013695,2]
[426698695,1782750120000,200.0,0.000148,5]
[426698696,1782750122000,400.0,0.000149,5]
[426698697,1782750139000,-151.0,0.00013696,2]
[426698698,1782750192000,-152.0,0.00013697,2]
[426698699,1782750245000,-151.0,0.00013697,2]
[426698700,1782750399000,-182.08112135,0.00013673,2]
[426698702,1782750459000,300.0,0.000146,5]
[426698701,1782750459000,-1280.76887865,0.00013673,2]
[426698703,1782750460000,600.0,0.000147,5]
[426698705,1782750460000,1300.0,0.000149,5]
[426698704,1782750460000,1000.0,0.000148,5]
[426698707,1782750513000,-200.0,0.00013024,2]
[426698708,1782750566000,-249.0,0.00013348,2]
[426698710,1782750619000,-151.0,0.00013673,2]
[426698736,1782750633000,-150.0,0.00013697,2]
[426698734,1782750633000,-150.0,0.00013697,2]
[426698738,1782750633000,-150.0,0.00013697,2]
[426698747,1782750633000,-500.0,0.00013697,2]
[426698745,1782750633000,-500.0,0.00013697,2]
[426698735,1782750633000,-150.0,0.00013697,2]
[426698732,1782750633000,-153.0,0.00013697,2]
[426698729,1782750633000,-151.0,0.00013696,2]
[426698730,1782750633000,-152.0,0.00013697,2]
[426698731,1782750633000,-151.0,0.00013697,2]
[426698728,1782750633000,-151.0,0.00013696,2]
[426698727,1782750633000,-151.0,0.00013696,2]
[426698733,1782750633000,-150.0,0.00013697,2]
[426698723,1782750633000,-414.3438425,0.00013695,2]
[426698725,1782750633000,-500.0,0.00013695,2]
[426698724,1782750633000,-500.0,0.00013695,2]
[426698721,1782750633000,-153.0,0.00013673,2]
[426698722,1782750633000,-85.6561575,0.00013695,2]
[426698720,1782750633000,-151.0,0.00013673,2]
[426698717,1782750633000,-150.0,0.00013673,2]
[426698719,1782750633000,-150.0,0.00013673,2]
[426698718,1782750633000,-151.0,0.00013673,2]
[426698726,1782750633000,-500.0,0.00013695,2]
[426698743,1782750633000,-500.0,0.00013697,2]
[426698742,1782750633000,-500.0,0.00013697,2]
[426698737,1782750633000,-151.0,0.00013697,2]
[426698740,1782750633000,-347.40619593,0.00013697,2]
[426698774,1782750633000,-174.41,0.00013714,2]
[426698773,1782750633000,-151.0,0.00013698,2]
[426698771,1782750633000,-153.0,0.00013698,2]
[426698775,1782750633000,-640.42,0.00013731,2]
[426698772,1782750633000,-150.0,0.00013698,2]
[426698770,1782750633000,-154.57239102,0.00013698,2]
[426698766,1782750633000,-500.0,0.00013697,2]
[426698767,1782750633000,-227.28226687,0.00013697,2]
[426698763,1782750633000,-500.0,0.00013697,2]
[426698761,1782750633000,-522.02838903,0.00013697,2]
[426698765,1782750633000,-500.0,0.00013697,2]
[426698768,1782750633000,-151.0,0.00013698,2]
[426698744,1782750633000,-500.0,0.00013697,2]
[426698769,1782750633000,-150.0,0.00013698,2]
[426698741,1782750633000,-500.0,0.00013697,2]
[426698751,1782750633000,-500.0,0.00013697,2]
[426698753,1782750633000,-500.0,0.00013697,2]
[426698739,1782750633000,-500.0,0.00013697,2]
[426698759,1782750633000,-500.0,0.00013697,2]
[426698755,1782750633000,-500.0,0.00013697,2]
[426698749,1782750633000,-500.0,0.00013697,2]
[426698757,1782750633000,-500.0,0.00013697,2]
[426698794,1782750634000,-447.458657,0.00014699,2]
[426698776,1782750634000,-162.56,0.00013748,2]
[426698782,1782750634000,-219.2739826,0.00014326,2]
[426698778,1782750634000,-450.75844731,0.0001399,2]
[426698781,1782750634000,-300.0,0.00014326,2]
[426698779,1782750634000,-174.53,0.00014042,2]
[426698777,1782750634000,-150.0,0.00013974,2]
[426698780,1782750634000,-2500.0,0.00014174,2]
[426698784,1782750634000,-174.41,0.00014399,2]
[426698793,1782750634000,-94.32692902,0.00014682,2]
[426698785,1782750634000,-4188.9182,0.00014614,2]
[426698783,1782750634000,-166.66,0.0001438,2]
[426698792,1782750634000,-72.33307098,0.00014682,2]
[426698791,1782750634000,-3754.62428058,0.00014614,2]
[426698787,1782750634000,-2500.0,0.00014614,2]
[426698795,1782750634000,-725.33436749,0.00014714,2]
[426698790,1782750634000,-4221.99636906,0.00014614,2]
[426698789,1782750634000,-29513.61087137,0.00014614,2]
[426698788,1782750634000,-6668.0525,0.00014614,2]
[426698786,1782750634000,-20031.6454,0.00014614,2]
[426698828,1782750638000,-200.0,0.00015065,2]
[426698830,1782750638000,-267.97465902,0.00015065,2]
[426698831,1782750638000,-600.0,0.00015067,2]
[426698835,1782750638000,-300.0,0.00015067,2]
[426698834,1782750638000,-300.0,0.00015067,2]
[426698833,1782750638000,-360.11995351,0.00015067,2]
[426698832,1782750638000,-600.0,0.00015067,2]
[426698837,1782750638000,-300.0,0.00015067,2]
[426698839,1782750638000,-174.41,0.00015085,2]
[426698838,1782750638000,-200.0,0.00015067,2]
[426698841,1782750638000,-166.66,0.00015288,2]
[426698840,1782750638000,-164.27,0.0001526,2]
[426698829,1782750638000,-200.0,0.00015065,2]
[426698843,1782750638000,-166.66,0.00015591,2]
[426698846,1782750638000,-2137.64,0.00016003,2]
[426698844,1782750638000,-200.0,0.00015876,2]
[426698847,1782750638000,-500.0,0.00016016,2]
[426698849,1782750638000,-576.37,0.00016438,2]
[426698842,1782750638000,-176.34,0.00015484,2]
[426698827,1782750638000,-250.0,0.0001504,2]
[426698807,1782750638000,-2500.0,0.00014614,2]
[426698825,1782750638000,-502.0,0.00015,2]
[426698851,1782750638000,-11945.98111598,0.00016804,2]
[426698808,1782750638000,-1499274.66563251,0.00014714,2]
[426698809,1782750638000,-5565.98604843,0.00014714,2]
[426698810,1782750638000,-186.6602115,0.00014814,2]
[426698811,1782750638000,-518.16800403,0.00014898,2]
[426698812,1782750638000,-500.0,0.00014898,2]
[426698817,1782750638000,-3384.22,0.00014898,2]
[426698816,1782750638000,-3384.22,0.00014898,2]
[426698813,1782750638000,-500.0,0.00014898,2]
[426698818,1782750638000,-3384.22,0.00014898,2]
[426698814,1782750638000,-3384.22,0.00014898,2]
[426698823,1782750638000,-166.66,0.00014985,2]
[426698819,1782750638000,-3384.22,0.00014898,2]
[426698815,1782750638000,-3384.22,0.00014898,2]
[426698820,1782750638000,-1500000.0,0.00014899,2]
[426698824,1782750638000,-500.0,0.00015,2]
[426698822,1782750638000,-163.87,0.00014914,2]
[426698821,1782750638000,-470.53,0.000149,2]
[426698826,1782750638000,-250.0,0.0001504,2]
[426698836,1782750638000,-300.0,0.00015067,2]
[426698848,1782750638000,-275.14,0.00016127,2]
[426698845,1782750638000,-166.66,0.00015893,2]
[426698856,1782750638000,-166.66,0.00017363,2]
[426698880,1782750638000,-185.0,0.0002,2]
[426698874,1782750638000,-640.42,0.00019224,2]
[426698876,1782750638000,-197.05064731,0.0001983,2]
[426698883,1782750638000,-437.0,0.0002,2]
[426698885,1782750638000,-385.0,0.0002,2]
[426698887,1782750638000,-3161.81,0.0002,2]
[426698902,1782750638000,-385.0,0.00021,2]
[426698898,1782750638000,-185.0,0.00021,2]
[426698900,1782750638000,-437.0,0.00021,2]
[426698907,1782750638000,-1136.45,0.00021207,2]
[426698891,1782750638000,-275.14,0.00020159,2]
[426698906,1782750638000,-500.0,0.00021094,7]
[426698904,1782750638000,-150.0,0.00021,2]
[426698908,1782750638000,-475.81023199,0.00021264,2]
[426698889,1782750638000,-500.0,0.00020078,6]
[426698896,1782750638000,-208.0,0.00021,2]
[426698909,1782750638000,-296.64,0.00021273,2]
[426698910,1782750638000,-470.53,0.000213,2]
[426698854,1782750638000,-33735.60724037,0.00016919,2]
[426698875,1782750638000,-166.66,0.00019582,2]
[426698872,1782750638000,-3754.62428053,0.0001908,2]
[426698894,1782750638000,-150.0,0.00020547,2]
[426698871,1782750638000,-500.0,0.00019062,5]
[426698852,1782750638000,-166.66,0.00016808,2]
[426698877,1782750638000,-208.0,0.0002,2]
[426698853,1782750638000,-3754.62428053,0.00016847,2]
[426698855,1782750638000,-500.0,0.00017031,3]
[426698850,1782750638000,-188.04828906,0.00016614,2]
[426698867,1782750638000,-1341.88,0.00018533,2]
[426698869,1782750638000,-166.66,0.00019027,2]
[426698858,1782750638000,-166.66,0.00017918,2]
[426698868,1782750638000,-186.66021149,0.00018605,2]
[426698857,1782750638000,-489.89819606,0.000174,3]
[426698859,1782750638000,-500.0,0.00018047,4]
[426698864,1782750638000,-9544.26,0.00018533,2]
[426698866,1782750638000,-299.99,0.00018533,4]
[426698862,1782750638000,-166.66,0.00018472,2]
[426698861,1782750638000,-275.14,0.00018143,2]
[426698865,1782750638000,-999.99,0.00018533,2]
[426698860,1782750638000,-470.53,0.000181,2]
[426698870,1782750638000,-510.38128297,0.00019041,2]
[426698873,1782750638000,-33735.60724037,0.00019223,2]
[426698863,1782750638000,-54632.8,0.00018533,2]
[426698952,1782750639000,-177.37373037,0.00023897,2]
[426698954,1782750639000,-162.41922868,0.00023897,2]
[426698953,1782750639000,-171.01563022,0.00023897,2]
[426698950,1782750639000,-176.05132423,0.00023897,2]
[426698943,1782750639000,-152.76974159,0.00023892,2]
[426698946,1782750639000,-192.76611164,0.00023897,2]
[426698949,1782750639000,-175.85414403,0.00023897,2]
[426698941,1782750639000,-586.85,0.0002333,2]
[426698944,1782750639000,-170.93377854,0.00023892,2]
[426698942,1782750639000,-33735.60724037,0.00023832,2]
[426698951,1782750639000,-185.19696093,0.00023897,2]
[426698945,1782750639000,-173.30513177,0.00023897,2]
[426698963,1782750639000,-1006.0,0.00024,7]
[426698948,1782750639000,-152.01738335,0.00023897,2]
[426698960,1782750639000,-185.0,0.00024,2]
[426698955,1782750639000,-156.91682235,0.00023898,2]
[426698957,1782750639000,-168.52429316,0.00023898,2]
[426698958,1782750639000,-179.02888548,0.00023898,2]
[426698959,1782750639000,-208.0,0.00024,2]
[426698956,1782750639000,-212.73101104,0.00023898,2]
[426698961,1782750639000,-437.0,0.00024,2]